fUST/lending_fUST_20250430
["ID","MTS","AMOUNT","RATE_DAILY","PERIOD"]
[359437373,1746017459593,-343.52963237,0.00026554,2]
[359437634,1746017545583,-279.5646378,0.00023566,2]
[359437635,1746017552497,-47.3005817,0.00023566,2]
[359437636,1746018332328,-434.6843693,0.00023,14]
[359437637,1746018336277,-211.04107581,0.00023,14]
[359437638,1746018339807,-152.0,0.00023,14]
[359437639,1746018343611,-184.864857,0.00023,14]
[359437640,1746018347050,-263.42974267,0.00024,2]
[359437641,1746018351686,-236.57025733,0.00024,2]
[359437673,1746018631946,-2131.0,0.000235,14]
[359437674,1746018631957,-193.09858075,0.000239,2]
[359437675,1746018631967,-2306.2867454,0.00024,2]
[359437676,1746018631977,-193.09858075,0.00024379,2]
[359437677,1746018631987,-286.283637,0.00024642,2]
[359437678,1746018631996,-193.09858075,0.00024857,2]
[359437679,1746018632006,-279.5646378,0.00024968,2]
[359437680,1746018632015,-193.09858075,0.00025336,2]
[359437681,1746018632025,-152.68707532,0.0002569,2]
[359437682,1746018632035,-1200.0,0.00025789,2]
[359437683,1746018632044,-293.330221,0.0002579,2]
[359437684,1746018632054,-193.09858075,0.00025814,2]
[359437686,1746018632063,-550.93037878,0.00025814,2]
[359437687,1746018632072,-4510.9282027,0.00025834,2]
[359437688,1746018632081,-19991.51949839,0.00025885,2]
[359437689,1746018632094,-527.50577751,0.00025885,2]
[359437690,1746018632103,-7017.98813893,0.00025914,2]
[359437719,1746018637991,-435.59215997,0.00025913,2]
[359437720,1746018638001,-500.0,0.00025913,2]
[359437721,1746018638011,-303.49543922,0.00025913,2]
[359437722,1746018638023,-83.43323019,0.00025913,2]
[359437723,1746018638033,-500.0,0.00025913,2]
[359437724,1746018638043,-615.1210634,0.00025913,2]
[359437725,1746018638053,-297.13519768,0.00025913,2]
[359437726,1746018638062,-500.0,0.00025913,2]
[359437727,1746018638072,-383.05962386,0.00025913,2]
[359437728,1746018638083,-116.94037614,0.00025913,2]
[359437729,1746018638093,-496.11705062,0.00025913,2]
[359438418,1746018650596,-3.88294938,0.00025913,2]
[359438420,1746018650606,-500.0,0.00025913,2]
[359438422,1746018650615,-500.0,0.00025913,2]
[359438424,1746018650625,-500.0,0.00025913,2]
[359438426,1746018650634,-500.0,0.00025913,2]
[359438428,1746018650643,-500.0,0.00025913,2]
[359438430,1746018650653,-500.0,0.00025913,2]
[359438432,1746018650663,-500.0,0.00025913,2]
[359438434,1746018650675,-293.10276825,0.00025913,2]
[359438436,1746018650685,-14828.51678292,0.00025914,2]
[359438438,1746018650695,-541.5644908,0.00025915,2]
[359438440,1746018650707,-5000.0,0.00026155,2]
[359438442,1746018650716,-207.4,0.00026169,2]
[359438444,1746018650725,-5000.0,0.00026169,2]
[359438446,1746018650735,-167.268709,0.00026208,4]
[359438448,1746018650746,-502.0,0.00026553,2]
[359438450,1746018650755,-313.43553542,0.00027,3]
[359438452,1746018650765,-160.0,0.00027,3]
[359438454,1746018650774,-182.04053198,0.00027,3]
[359438456,1746018650783,-2076.58429359,0.00027155,2]
[359438457,1746018650795,-2923.41570641,0.00027155,2]
[359438458,1746018650805,-178.17381868,0.00027287,2]
[359438459,1746018650814,-1000.0,0.00027297,2]
[359438460,1746018650823,-250.0,0.00027297,2]
[359438461,1746018650833,-309.5983705,0.00027337,2]
[359438462,1746018650842,-160.0,0.00027346,2]
[359438463,1746018650851,-160.0,0.00027346,2]
[359438464,1746018650861,-840.90604152,0.00027346,2]
[359438465,1746018650870,-182.04053198,0.00027346,2]
[359438466,1746018650880,-160.0,0.00027346,2]
[359438467,1746018650889,-12592.61399441,0.00027346,2]
[359438468,1746018650899,-178.17381868,0.00027377,2]
[359438469,1746018650908,-261.39,0.0002738,3]
[359438470,1746018650918,-529.16733219,0.00027386,2]
[359438471,1746018650927,-152.81459044,0.00027386,2]
[359438472,1746018650936,-500.0,0.00027386,2]
[359438473,1746018650947,-583.5558474,0.00027386,2]
[359438474,1746018650956,-86647.36564804,0.00027387,2]
[359438475,1746018651237,-275.16655845,0.00027387,2]
[359438476,1746018651249,-1119.3,0.00027387,2]
[359438477,1746018651261,-1754.4,0.00027387,2]
[359438478,1746018651274,-38955.02206523,0.00027387,2]
[359438479,1746018651286,-9520.91698628,0.00027387,2]
[359438480,1746018651298,-8768.12,0.0002739,2]
[359438481,1746018651308,-178.478,0.0002739,16]
[359438482,1746018651319,-250.0,0.00027397,15]
[359438483,1746018651331,-1000.0,0.00027397,15]
[359438484,1746018651342,-491.13,0.00027397,2]
[359438485,1746018651351,-400.0,0.00027397,2]
[359438486,1746018651361,-400.0,0.00027397,2]
[359438487,1746018651370,-36.33294849,0.00027397,2]
[359438488,1746018651381,-363.66705151,0.00027397,2]
[359438489,1746018651391,-400.0,0.00027397,2]
[359438490,1746018651400,-181.50894849,0.00027397,2]
[359438491,1746018651411,-23.43075145,0.00027397,2]
[359438492,1746018651423,-400.0,0.00027397,2]
[359438493,1746018651432,-400.0,0.00027397,2]
[359438494,1746018651441,-400.0,0.00027397,2]
[359438495,1746018651451,-400.0,0.00027397,2]
[359438496,1746018651461,-400.0,0.00027397,2]
[359438497,1746018651470,-400.0,0.00027397,2]
[359438498,1746018651480,-345.66108812,0.00027397,2]
[359438499,1746018651490,-400.0,0.00027397,2]
[359438500,1746018651500,-400.0,0.00027397,2]
[359438501,1746018651509,-272.28703541,0.00027397,2]
[359438502,1746018906098,-151.0,0.00018585,2]
[359438503,1746019119237,181.30959748,6.8e-07,2]
[359438504,1746019419950,181.10293743,6.8e-07,2]
[359438507,1746019635123,-151.0,0.00018585,2]
[359438508,1746019635143,-454.752561,0.00024739,2]
[359438509,1746019635164,-250.0,0.00024842,2]
[359438510,1746019635184,-325.0459921,0.00024882,2]
[359438511,1746019635204,-740.5920688,0.00024907,2]
[359438512,1746019635224,-182.4479967,0.00025081,2]
[359438513,1746019635245,-490.87714415,0.00025773,2]
[359438514,1746019635268,-1200.0,0.00025812,2]
[359438515,1746019635293,-300.0,0.00025812,2]
[359438516,1746019635313,-1000.0,0.00025813,2]
[359438517,1746019635333,-238.73498998,0.00025813,2]
[359438518,1746019635352,-250.0,0.00025813,2]
[359438519,1746019635373,-20545.20785778,0.00025813,2]
[359438520,1746019635394,-300.0,0.00025868,2]
[359438521,1746019635416,-39177.1151896,0.00025869,2]
[359438522,1746019635438,-4014.07882647,0.00025869,2]
[359438523,1746019635460,-538.36,0.00025869,3]
[359438524,1746019635491,-1013.45734844,0.00025869,2]
[359438525,1746019635515,-500.0,0.00025869,2]
[359438526,1746019635538,-500.0,0.00025869,2]
[359438527,1746019635561,-500.0,0.00025869,2]
[359438528,1746019635594,-1013.45734844,0.00025869,2]
[359438529,1746019635614,-193.86355537,0.00025869,2]
[359438530,1746019635635,-502.03224543,0.00025869,2]
[359438531,1746019635655,-503.52541284,0.00025869,2]
[359438532,1746019635678,-500.0,0.00025869,2]
[359438533,1746019635707,-1013.45734844,0.00025869,2]
[359438534,1746019635730,-278.91148888,0.00025869,2]
[359438535,1746019635761,-1013.45734844,0.00025869,2]
[359438536,1746019635784,-500.0,0.00025869,2]
[359438537,1746019635808,-500.0,0.00025869,2]
[359438538,1746019635837,-1013.45734844,0.00025869,2]
[359438539,1746019635859,-436.76646499,0.00025869,2]
[359438540,1746019635884,-500.0,0.00025869,2]
[359438541,1746019635911,-1013.45734844,0.00025869,2]
[359438542,1746019635933,-500.0,0.00025869,2]
[359438543,1746019635964,-1013.45734844,0.00025869,2]
[359438544,1746019635989,-500.0,0.00025869,2]
[359438545,1746019636012,-500.0,0.00025869,2]
[359438546,1746019636043,-1013.45734844,0.00025869,2]
[359438547,1746019636064,-500.0,0.00025869,2]
[359438548,1746019636088,-500.0,0.00025869,2]
[359438549,1746019636119,-1013.45734844,0.00025869,2]
[359438550,1746019636148,-1013.45734844,0.00025869,2]
[359438551,1746019636170,-500.0,0.00025869,2]
[359438552,1746019636199,-1013.45734844,0.00025869,2]
[359438553,1746019636221,-500.0,0.00025869,2]
[359438554,1746019636253,-1013.45734844,0.00025869,2]
[359438555,1746019636275,-500.0,0.00025869,2]
[359438556,1746019636304,-1013.45734844,0.00025869,2]
[359438557,1746019636329,-500.0,0.00025869,2]
[359438558,1746019636358,-1013.45734844,0.00025869,2]
[359438559,1746019636388,-1013.45734844,0.00025869,2]
[359438560,1746019636412,-500.0,0.00025869,2]
[359438561,1746019636443,-1013.45734844,0.00025869,2]
[359438562,1746019636467,-500.0,0.00025869,2]
[359438563,1746019636496,-1013.45734844,0.00025869,2]
[359438564,1746019636528,-1013.45734844,0.00025869,2]
[359438565,1746019636553,-500.0,0.00025869,2]
[359438566,1746019636732,-1013.45734844,0.00025869,2]
[359438567,1746019636757,-500.0,0.00025869,2]
[359438568,1746019636788,-1013.45734844,0.00025869,2]
[359438569,1746019636816,-1013.45734844,0.00025869,2]
[359438570,1746019636845,-1013.45734844,0.00025869,2]
[359438571,1746019636868,-500.0,0.00025869,2]
[359438572,1746019636898,-1013.45734844,0.00025869,2]
[359438573,1746019636924,-500.0,0.00025869,2]
[359438574,1746019636956,-1013.45734844,0.00025869,2]
[359438575,1746019636988,-1013.45734844,0.00025869,2]
[359438576,1746019637018,-1013.45734844,0.00025869,2]
[359438577,1746019637049,-1013.45734844,0.00025869,2]
[359438578,1746019637085,-1013.45734844,0.00025869,2]
[359438579,1746019637123,-1013.45734844,0.00025869,2]
[359438580,1746019637156,-1013.45734844,0.00025869,2]
[359438581,1746019637187,-1013.45734844,0.00025869,2]
[359438582,1746019637219,-1013.45734844,0.00025869,2]
[359438583,1746019637251,-1013.45734844,0.00025869,2]
[359438584,1746019637282,-1013.45734844,0.00025869,2]
[359438585,1746019637313,-1013.45734844,0.00025869,2]
[359438586,1746019637342,-1013.45734844,0.00025869,2]
[359438587,1746019637371,-1013.45734844,0.00025869,2]
[359438588,1746019637402,-1013.45734844,0.00025869,2]
[359438589,1746019637431,-1013.45734844,0.00025869,2]
[359438590,1746019637461,-1013.45734844,0.00025869,2]
[359438591,1746019637488,-1013.45734844,0.00025869,2]
[359438592,1746019637518,-1013.45734844,0.00025869,2]
[359438593,1746019637547,-1013.45734844,0.00025869,2]
[359438594,1746019637575,-1013.45734844,0.00025869,2]
[359438595,1746019637606,-1013.45734844,0.00025869,2]
[359438596,1746019637634,-1013.45734844,0.00025869,2]
[359438597,1746019637662,-1013.45734844,0.00025869,2]
[359438598,1746019637689,-1013.45734844,0.00025869,2]
[359438599,1746019637717,-1013.45734844,0.00025869,2]
[359438600,1746019637745,-1013.45734844,0.00025869,2]
[359438601,1746019637776,-1013.45734844,0.00025869,2]
[359438602,1746019637805,-1013.45734844,0.00025869,2]
[359438603,1746019637833,-1013.45734844,0.00025869,2]
[359438604,1746019637862,-1013.45734844,0.00025869,2]
[359438605,1746019637890,-1013.45734844,0.00025869,2]
[359438606,1746019637918,-1013.45734844,0.00025869,2]
[359438607,1746019637948,-1013.45734844,0.00025869,2]
[359438608,1746019637975,-1013.45734844,0.00025869,2]
[359438609,1746019638003,-1013.45734844,0.00025869,2]
[359438610,1746019638042,-1013.45734844,0.00025869,2]
[359438611,1746019638073,-1013.45734844,0.00025869,2]
[359438612,1746019638097,-500.0,0.00025869,2]
[359438613,1746019638128,-1006.46798742,0.00025869,2]
[359438614,1746019638159,-1006.46798742,0.00025869,2]
[359438615,1746019638190,-1006.46798742,0.00025869,2]
[359438616,1746019638221,-1006.46798742,0.00025869,2]
[359438617,1746019638250,-1006.46798742,0.00025869,2]
[359438618,1746019638282,-1006.46798742,0.00025869,2]
[359438619,1746019638313,-1006.46798742,0.00025869,2]
[359438620,1746019638344,-1006.46798742,0.00025869,2]
[359438621,1746019638373,-1006.46798742,0.00025869,2]
[359438622,1746019638402,-1006.46798742,0.00025869,2]
[359438623,1746019638430,-1006.46798742,0.00025869,2]
[359438624,1746019638459,-1006.46798742,0.00025869,2]
[359438625,1746019638489,-1006.46798742,0.00025869,2]
[359438626,1746019638521,-1006.46798742,0.00025869,2]
[359438627,1746019638552,-1006.46798742,0.00025869,2]
[359438628,1746019638583,-1006.46798742,0.00025869,2]
[359438629,1746019638615,-1006.46798742,0.00025869,2]
[359438630,1746019638645,-1006.46798742,0.00025869,2]
[359438631,1746019638675,-1006.46798742,0.00025869,2]
[359438632,1746019638706,-1006.46798742,0.00025869,2]
[359438633,1746019638736,-1006.46798742,0.00025869,2]
[359438634,1746019638768,-1006.46798742,0.00025869,2]
[359438635,1746019638798,-1006.46798742,0.00025869,2]
[359438636,1746019638828,-1006.46798742,0.00025869,2]
[359438637,1746019638856,-500.0,0.00025869,2]
[359438638,1746019638881,-500.0,0.00025869,2]
[359438639,1746019638911,-1006.46798743,0.00025869,2]
[359438640,1746019638941,-1006.46798743,0.00025869,2]
[359438641,1746019638974,-1006.46798743,0.00025869,2]
[359438642,1746019639005,-1006.46798743,0.00025869,2]
[359438643,1746019639030,-500.0,0.00025869,2]
[359438644,1746019639063,-1006.46798742,0.00025869,2]
[359438645,1746019639087,-500.0,0.00025869,2]
[359438646,1746019639113,-500.0,0.00025869,2]
[359438647,1746019639135,-500.0,0.00025869,2]
[359438648,1746019639156,-500.0,0.00025869,2]
[359438649,1746019639184,-370.41713254,0.00025869,2]
[359438650,1746019639206,-258.48909318,0.00025869,2]
[359438651,1746019639229,-39177.1151896,0.0002587,2]
[359438652,1746019639251,-4014.07882647,0.0002587,2]
[359438653,1746019639274,-151.0,0.0002587,7]
[359438654,1746019639297,-151.0,0.0002587,7]
[359438655,1746019639318,-500.0,0.00025873,2]
[359438656,1746019639340,-500.0,0.00025873,2]
[359438657,1746019639361,-534.42485289,0.00025873,2]
[359438658,1746019639381,-500.0,0.00025873,2]
[359438659,1746019639402,-503.52311042,0.00025873,2]
[359438660,1746019639423,-500.0,0.00025873,2]
[359438661,1746019639444,-500.0,0.00025873,2]
[359438662,1746019639464,-500.0,0.00025873,2]
[359438663,1746019639484,-502.4943318,0.00025873,2]
[359438664,1746019639506,-500.0,0.00025873,2]
[359438665,1746019639526,-500.0,0.00025873,2]
[359438666,1746019639547,-500.0,0.00025873,2]
[359438667,1746019639569,-209.21427823,0.00025873,2]
[359438668,1746019639591,-500.0,0.00025873,2]
[359438669,1746019639613,-500.0,0.00025873,2]
[359438670,1746019639635,-505.29847064,0.00025873,2]
[359438671,1746019639655,-500.0,0.00025873,2]
[359438672,1746019639676,-300.0,0.00025873,2]
[359438673,1746019639699,-500.0,0.00025879,2]
[359438674,1746019639722,-500.0,0.00025879,2]
[359438675,1746019639745,-500.0,0.00025879,2]
[359438676,1746019639768,-500.0,0.00025879,2]
[359438677,1746019639791,-500.0,0.00025879,2]
[359438678,1746019639821,-488.3337316,0.00025879,2]
[359438679,1746019639848,-500.0,0.00025879,2]
[359438680,1746019639873,-500.0,0.00025879,2]
[359438681,1746019639896,-500.0,0.00025879,2]
[359438682,1746019639920,-500.0,0.00025879,2]
[359438683,1746019639943,-151.0,0.00025879,7]
[359438684,1746019639970,-500.0,0.00025879,2]
[359438685,1746019639995,-474.22864616,0.00025879,2]
[359438686,1746019640020,-500.0,0.00025879,2]
[359438687,1746019640045,-500.0,0.00025879,2]
[359438688,1746019640068,-500.0,0.00025879,2]
[359438689,1746019640092,-500.0,0.00025879,2]
[359438690,1746019640117,-500.0,0.00025879,2]
[359438691,1746019640140,-500.0,0.00025879,2]
[359438692,1746019640164,-500.0,0.00025879,2]
[359438693,1746019640187,-500.0,0.00025879,2]
[359438694,1746019640210,-500.0,0.00025879,2]
[359438695,1746019640232,-406.53742572,0.00025879,2]
[359438696,1746019640255,-151.0,0.00025879,7]
[359438697,1746019640462,-151.0,0.00025879,7]
[359438698,1746019640483,-151.0,0.00025879,7]
[359438699,1746019640505,-20545.45302652,0.00025879,3]
[359438700,1746019640526,-182.04053198,0.00025879,3]
[359438701,1746019640548,-160.0,0.00025879,3]
[359438702,1746019640573,-48064.60454625,0.00025879,2]
[359438703,1746019640595,-50000.0,0.0002588,2]
[359438704,1746019640616,-151.0,0.0002588,7]
[359438705,1746019640636,-151.0,0.0002588,7]
[359438706,1746019640656,-151.0,0.0002588,7]
[359438707,1746019640676,-151.0,0.0002588,7]
[359438708,1746019640696,-151.0,0.0002588,7]
[359438709,1746019640717,-151.0,0.0002588,7]
[359438710,1746019640737,-151.0,0.0002588,7]
[359438711,1746019640759,-151.0,0.0002588,7]
[359438712,1746019640780,-151.0,0.0002589,7]
[359438713,1746019640804,-151.778638,0.0002589,7]
[359438714,1746019640826,-151.0,0.0002589,7]
[359438715,1746019640848,-151.0,0.0002589,7]
[359438716,1746019640870,-39177.1151896,0.00025891,2]
[359438717,1746019640892,-4014.07882647,0.00025891,2]
[359438718,1746019640912,-151.0,0.00025891,7]
[359438719,1746019640935,-151.0,0.00025891,7]
[359438720,1746019640959,-151.0,0.00025891,7]
[359438721,1746019640983,-39177.1151896,0.00025891,2]
[359438722,1746019641006,-4014.07882647,0.00025891,2]
[359438723,1746019641028,-151.0,0.000259,7]
[359438724,1746019641049,-242.765363,0.000259,7]
[359438725,1746019641070,-151.0,0.000259,7]
[359438726,1746019641091,-151.0,0.000259,7]
[359438727,1746019641113,-151.0,0.000259,7]
[359438728,1746019641135,-152.381612,0.000259,7]
[359438729,1746019641156,-1636.567672,0.000259,2]
[359438730,1746019641178,-1636.567672,0.000259,2]
[359438731,1746019641199,-151.0,0.000259,7]
[359438732,1746019641221,-292.350819,0.000259,7]
[359438733,1746019641253,-232.814996,0.000259,7]
[359438734,1746019641276,-160.0,0.000259,3]
[359438735,1746019641297,-151.0,0.00025901,7]
[359438736,1746019641318,-153.080152,0.00025901,7]
[359438737,1746019641339,-152.622443,0.00025901,7]
[359438738,1746019641360,-172.494973,0.00025901,7]
[359438739,1746019641381,-172.494973,0.00025901,7]
[359438740,1746019641402,-151.0,0.00025901,7]
[359438741,1746019641423,-291.886868,0.00025901,7]
[359438742,1746019641444,-151.0,0.00025901,7]
[359438743,1746019641467,-291.886868,0.00025901,7]
[359438744,1746019641488,-151.0,0.00025901,2]
[359438745,1746019641512,-154.099387,0.00025901,7]
[359438746,1746019641534,-151.0,0.00025901,7]
[359438747,1746019641555,-151.0,0.00025901,7]
[359438748,1746019641577,-151.0,0.00025901,7]
[359438749,1746019641600,-1636.567672,0.00025901,2]
[359438750,1746019641623,-1636.567672,0.00025901,2]
[359438751,1746019641644,-151.0,0.00025901,7]
[359438752,1746019641665,-977.48117801,0.00025911,2]
[359438753,1746019641687,-1636.567672,0.00025911,2]
[359438754,1746019641708,-1636.567672,0.00025911,2]
[359438755,1746019641729,-151.0,0.00025911,7]
[359438756,1746019641750,-500.0,0.00025973,2]
[359438757,1746019641773,-151.0,0.00026,7]
[359438758,1746019641795,-151.0,0.00026,7]
[359438759,1746019641815,-151.0,0.00026,7]
[359438760,1746019641836,-151.0,0.00026,7]
[359438761,1746019641867,-177.302299,0.00026,7]
[359438762,1746019641891,-177.302299,0.00026,7]
[359438763,1746019641915,-151.0,0.00026,7]
[359438764,1746019641937,-490.87714413,0.00026149,2]
[359438765,1746019641963,-151.0,0.00026169,2]
[359438766,1746019641986,-5000.0,0.00026169,2]
[359438767,1746019642010,-5000.0,0.00026169,2]
[359438768,1746019642033,-5000.0,0.00026169,2]
[359438769,1746019642056,-5000.0,0.00026169,2]
[359438770,1746019642078,-5000.0,0.00026169,2]
[359438771,1746019642101,-207.4,0.00026169,2]
[359438772,1746019642124,-5000.0,0.00026169,2]
[359438773,1746019642145,-4914.54299561,0.00026169,2]
[359438774,1746019642167,-240.9714839,0.00026208,4]
[359438775,1746019642188,-1086.3938964,0.0002626,2]
[359438776,1746019642210,-151.0,0.00026524,7]
[359438777,1746019642233,-490.87714413,0.00026525,2]
[359438778,1746019642255,-300.82,0.00026588,120]
[359438779,1746019642276,-5000.0,0.00026717,2]
[359438780,1746019642297,-615.79230901,0.000269,2]
[359438781,1746019642319,-490.87714413,0.000269,2]
[359438782,1746019642340,-305.81467136,0.00026983,2]
[359438783,1746019642361,-251.53274686,0.00027,2]
[359438784,1746019642382,-299.999999,0.00027,2]
[359438785,1746019642403,-313.43553542,0.00027,3]
[359438786,1746019642424,-305.81467137,0.00027184,2]
[359438787,1746019642447,-39177.1151896,0.0002727,2]
[359438788,1746019642470,-4014.07882647,0.0002727,2]
[359438789,1746019642492,-151.0,0.0002727,7]
[359438790,1746019642515,-151.0,0.0002727,7]
[359438791,1746019642538,-151.0,0.0002727,7]
[359438792,1746019642560,-490.87714413,0.00027276,2]
[359438793,1746019642583,-12093.03852128,0.0002728,2]
[359438801,1746019714857,664.35380519,0.00017,2]
[359438808,1746019808946,-285.57025733,0.00024248,2]
[359438833,1746019832213,-225.66086592,0.00024248,2]
[359438835,1746019832223,-300.0,0.00024906,2]
[359438837,1746019832233,-300.0,0.00024906,2]
[359438838,1746019832243,-1200.0,0.00024906,2]
[359438839,1746019832253,-244.0,0.00024906,2]
[359438840,1746019832262,-10004.72632478,0.00024907,2]
[359438841,1746019832274,-6660.02586012,0.00024907,2]
[359438842,1746019832283,-467.31155616,0.0002546,2]
[359438843,1746019832292,-500.0,0.00025868,2]
[359438844,1746019832300,-500.0,0.00025868,2]
[359438845,1746019832310,-151.0,0.0002587,7]
[359438846,1746019832318,-151.0,0.0002587,7]
[359438848,1746019832327,-151.0,0.0002587,7]
[359438849,1746019832336,-153.24156,0.0002587,7]
[359438850,1746019832345,-160.661459,0.00025879,7]
[359438851,1746019832354,-151.0,0.00025879,7]
[359438852,1746019832363,-151.0,0.00025879,7]
[359438853,1746019832372,-151.0,0.00025879,7]
[359438854,1746019832382,-151.0,0.00025879,7]
[359438855,1746019832392,-964.724594,0.00025879,7]
[359438856,1746019832402,-964.724594,0.00025879,7]
[359438857,1746019832414,-151.0,0.00025879,7]
[359438858,1746019832423,-151.0,0.00025879,7]
[359438859,1746019832433,-151.0,0.00025879,7]
[359438860,1746019832442,-151.0,0.00025879,7]
[359438862,1746019832452,-421.37435881,0.00025879,3]
[359438863,1746019832462,-151.0,0.0002588,7]
[359438864,1746019832473,-151.0,0.0002588,7]
[359438865,1746019832484,-151.0,0.0002588,7]
[359438866,1746019832495,-151.0,0.0002588,7]
[359438867,1746019832506,-151.0,0.0002588,7]
[359438868,1746019832515,-151.0,0.0002588,7]
[359438869,1746019832525,-151.0,0.0002588,7]
[359438870,1746019832534,-151.0,0.0002588,7]
[359438871,1746019832543,-964.724594,0.0002588,7]
[359438872,1746019832553,-964.724594,0.0002588,7]
[359438873,1746019832563,-964.724594,0.0002588,7]
[359438874,1746019832572,-964.724594,0.0002588,7]
[359438875,1746019832582,-151.0,0.0002588,7]
[359438876,1746019832592,-151.0,0.0002588,7]
[359438877,1746019832602,-238.339066,0.0002589,7]
[359438878,1746019832612,-151.0,0.0002589,7]
[359438879,1746019832621,-151.0,0.0002589,7]
[359438880,1746019832631,-247.882169,0.0002589,7]
[359438881,1746019832641,-964.724594,0.0002589,7]
[359438882,1746019832651,-964.724594,0.0002589,7]
[359438883,1746019832662,-158.410347,0.0002589,7]
[359438884,1746019832672,-151.0,0.0002589,7]
[359438885,1746019832682,-151.0,0.00025891,7]
[359438886,1746019832692,-151.0,0.00025891,7]
[359438887,1746019832702,-964.724594,0.00025891,7]
[359438888,1746019832711,-964.724594,0.00025891,7]
[359438889,1746019832721,-151.0,0.00025891,7]
[359438890,1746019832731,-502.80424046,0.000259,2]
[359438891,1746019832740,-197.389253,0.00026169,7]
[359438892,1746019832749,-151.0,0.00026169,2]
[359438893,1746019832759,-207.4,0.00026169,2]
[359438894,1746019832769,-192.7771871,0.00026208,4]
[359438895,1746019832779,-151.0,0.00026524,7]
[359438896,1746019832789,-151.0,0.00026524,7]
[359438897,1746019832798,-964.724594,0.00026524,7]
[359438898,1746019832808,-964.724594,0.00026524,7]
[359438899,1746019832817,-197.0,0.00026984,2]
[359438900,1746019832826,-420.0,0.00026984,2]
[359438901,1746019832836,-103374.57190805,0.00026999,2]
[359438902,1746019832849,-823.6815495,0.00026999,2]
[359438965,1746019840712,-64664.07932677,0.00026999,2]
[359438967,1746019840731,-4063.69772856,0.00026999,2]
[359438969,1746019840743,-1806.41131233,0.00026999,2]
[359438970,1746019840759,-1614.83479386,0.00026999,2]
[359438971,1746019840771,-708.43795877,0.00026999,2]
[359438972,1746019840786,-813.62704925,0.00026999,2]
[359438973,1746019840798,-65598.53807883,0.00026999,2]
[359438974,1746019840814,-4717.72312901,0.00026999,2]
[359438975,1746019840827,-611.21662208,0.00026999,2]
[359438977,1746019840839,-7742.60372299,0.00026999,2]
[359438978,1746019840850,-160.0,0.00027,3]
[359438979,1746019840861,-500.0,0.00027,3]
[359438980,1746019840873,-1680.0,0.00027106,2]
[359438981,1746019840884,-651.469322,0.00027175,2]
[359438982,1746019840894,-892.9114181,0.0002718,2]
[359438983,1746019840904,-12592.61399441,0.00027185,2]
[359438984,1746019840915,-305.81467136,0.0002721,2]
[359438985,1746019840928,-174.83650697,0.00027266,2]
[359438986,1746019840938,-151.0,0.0002727,7]
[359438987,1746019840948,-151.0,0.0002727,7]
[359438988,1746019840958,-964.724594,0.0002727,7]
[359438989,1746019840968,-964.724594,0.0002727,7]
[359438990,1746019840978,-500.0,0.00027279,2]
[359438991,1746019840987,-500.0,0.00027279,2]
[359438992,1746019840998,-154.98568415,0.00027279,2]
[359438993,1746019841008,-437.41849611,0.00027279,2]
[359438994,1746019841020,-500.0,0.00027279,2]
[359438997,1746019841030,-350.75336033,0.00027279,2]
[359438999,1746019841039,-500.0,0.00027279,2]
[359439001,1746019841050,-43562.20147872,0.0002728,2]
[359439003,1746019841062,-151.0,0.0002728,7]
[359439004,1746019841072,-151.0,0.0002728,7]
[359439005,1746019841082,-1636.567672,0.0002728,2]
[359439006,1746019841094,-1636.567672,0.0002728,2]
[359439007,1746019841105,-151.0,0.0002728,7]
[359439008,1746019841115,-151.0,0.0002728,7]
[359439009,1746019841125,-151.0,0.0002728,7]
[359439010,1746019841135,-160.48927,0.0002728,7]
[359439011,1746019841145,-151.0,0.0002728,7]
[359439012,1746019841155,-151.0,0.0002728,7]